Cogmind - Beta 9.5 @@@ ROGUE MODE // 2020.04.06 @ 15:36:37 Player: Demise Result: Self-destructed Performance ------------- Evolutions (1) 500 Regions Visited (3) 600 Robots Destroyed (33) 165 Value Destroyed (326) 326 Prototype IDs (0) 0 Alien Tech Used (0) 0 Bonus (0) 0 TOTAL SCORE: 1591 Bonus ------- None Cogmind --------- Core Integrity 400/400 Matter 290/300 Energy 100/100 System Corruption 0% Temperature Cool (0) Movement Core (50) Location -9/Materials Parts ------- > --- POWER (1) -------- (None) > --- PROPULSION (2) --- (None) > --- UTILITY (4) ------ (None) > --- WEAPON (2) ------- (None) > --- INVENTORY (4) ---- Light Ion Engine Large Storage Unit High-capacity Storage Unit Medium Matter Pod (100) Peak State ------------ > --- POWER ------------ Ion Engine > --- PROPULSION ------- Wheel Wheel > --- UTILITY ---------- Small Storage Unit Improved Terrain Scanner > --- WEAPON ----------- Particle Gun Particle Gun > --- INVENTORY -------- High-capacity Battery Medium Matter Pod Sensor Array Targeting Computer Mining Laser [Rating: 10] Favorites ----------- Power Ion Engine Engine Ion Engine Propulsion Wheel Wheel Wheel Utility Improved Terrain Scanner Device Improved Terrain Scanner Storage Small Storage Unit Weapon Particle Gun Energy Gun Particle Gun Ballistic Gun Assault Rifle Launcher Grenade Launcher Special Weapon Mining Laser Build | -11 -10 -10 -9 ------- Run | Scr Mat Min Mat Slots Evolved 2 | . . . 2 Power . | . . . . Propulsion . | . . . . Utility 2 | . . . 2 Weapon . | . . . . Parts Attached 20 | 7 9 4 . Power 3 | 1 2 . . Engine 3 | 1 2 . . Core . | . . . . Reactor . | . . . . Propulsion 2 | 2 . . . Treads . | . . . . Leg . | . . . . Wheel 2 | 2 . . . Hover . | . . . . Flight . | . . . . Utility 7 | 2 3 2 . Device 2 | 1 1 . . Storage 5 | 1 2 2 . Processor . | . . . . Hackware . | . . . . Protection . | . . . . Artifact . | . . . . Weapon 8 | 2 4 2 . Energy Gun 3 | . 3 . . Energy Cannon . | . . . . Ballistic Gun 3 | 2 . 1 . Ballistic Cannon . | . . . . Launcher 1 | . . 1 . Special Weapon 1 | . 1 . . Impact Weapon . | . . . . Slashing Weapon . | . . . . Piercing Weapon . | . . . . Special Melee Weapon . | . . . . Unidentified Prototypes . | . . . . Parts Lost 8 | . 1 7 . Power 1 | . . 1 . Propulsion 2 | . . 2 . Utility 1 | . . 1 . Weapon 4 | . 1 3 . Highest Loss Streak 4 | . 1 4 . Average Slot Usage (%) 86 | . 97 61 . Engine 12 | . 14 7 . Wheel 24 | . 28 15 . Device 12 | . 14 9 . Storage 13 | . 14 11 . Energy Gun 17 | . 21 7 . Ballistic Gun 4 | . 3 7 . Naked Turns 12 | . . 12 . Heaviest Build 42 | 14 42 41 . Greatest Support 20 | 20 20 20 . Greatest Overweight (x) 11 | . 2 11 . Average Overweight (x) . | . . 1 . Largest Inventory Capacity 16 | 6 12 16 . Average Capacity 8 | 5 8 9 . Most Carried 11 | 6 11 11 . Average Carried 6 | 3 7 7 . Final Capacity 12 | 6 12 4 4 Final Carried 11 | 5 11 4 4 Class Distribution -------------------- 100% | Mutant Dominant Class ---------------- Mutant | -10/Materials Mutant | -10/Mines Mutant | -9/Materials Resources | -11 -10 -10 -9 ----------- Run | Scr Mat Min Mat Matter Collected 918 | 667 97 154 . Remotely . | . . . . Salvage Created 744 | 346 337 61 . Parts 56 | 31 21 4 . Haulers Intercepted 2 | . 2 . . Recyclers Shooed . | . . . . Parts Field Recycled . | . . . . Retrieved Matter . | . . . . Parts Self-Destructed . | . . . . Prevented . | . . . . Kills | -11 -10 -10 -9 ------- Run | Scr Mat Min Mat Combat Hostiles Destroyed 17 | . 10 7 . Guns 13 | . 10 3 . AOE 4 | . . 4 . Classes Destroyed 7 | 3 3 1 . Worker 4 | 4 . . . Tunneler 9 | 9 . . . Hauler 2 | . 2 . . Recycler 1 | 1 . . . Swarmer 9 | . 6 3 . Grunt 4 | . 4 . . Assembled 4 | . . 4 . Best Kill Streak 5 | 5 4 4 . Combat Bots Only 4 | . 4 4 . Max Kills in Single Turn 2 | 2 1 1 . Gunslinging . | . . . . Exploded 1 | . . 1 . Melee . | . . . . Uniques/NPCs Destroyed . | . . . . Combat | -11 -10 -10 -9 -------- Run | Scr Mat Min Mat Damage Taken 654 | . 195 459 . Core 217 | . 37 180 . Absorbed by Shields . | . . . . Core Remaining (%) 56 | 100 . 13 . Volleys Fired 106 | 50 31 25 . Largest 2 | 2 2 2 . Hottest 130 | 40 130 85 . Shots Fired 184 | 100 57 27 . Gun 175 | 100 56 19 . Cannon . | . . . . Launcher 8 | . . 8 . Special 1 | . 1 . . Kinetic 117 | 100 3 14 . Thermal 59 | . 54 5 . Explosive 8 | . . 8 . Electromagnetic . | . . . . Robot Hit Streak 9 | 6 8 9 . Robot Miss Streak 5 | 3 3 5 . Penetration Max . | . . . . Secondary Targets . | . . . . Shots Hit Robots 99 | 48 37 14 . Core Hits 46 | 15 13 18 . Critical Hits . | . . . . Critical Kills . | . . . . Critical Parts Destroyed . | . . . . Melee Attacks . | . . . . Impact . | . . . . Slashing . | . . . . Piercing . | . . . . Sneak Attacks . | . . . . Combat Hostiles . | . . . . Follow-up Attacks . | . . . . Damage Inflicted 1529 | 580 534 415 . Guns 1273 | 580 534 159 . Cannons . | . . . . Explosions 256 | . . 256 . Melee . | . . . . Ramming . | . . . . Kinetic 700 | 580 22 98 . Thermal 573 | . 512 61 . Explosive 256 | . . 256 . Electromagnetic . | . . . . Impact . | . . . . Slashing . | . . . . Piercing . | . . . . Highest Corruption 11 | . 1 11 . Average Corruption 1 | . 1 4 . Corruption Purged . | . . . . Effects 8 | . 2 6 . Message Errors 1 | . 1 . . Matter Fused 2 | . . 2 . Energy Discharges 1 | . . 1 . Data Loss (minor) 1 | . . 1 . Targeting Errors 3 | . 1 2 . Overload Shots . | . . . . Overflow Damage 4 | . . 4 . Projectiles . | . . . . Explosions 4 | . . 4 . Melee . | . . . . Knockbacks . | . . . . Impact . | . . . . Kinetic . | . . . . Secondary . | . . . . Self-Inflicted Damage 84 | . . 84 . Shots 3 | . . 3 . Rammed . | . . . . Targets Rammed . | . . . . Kicked . | . . . . Crushed . | . . . . Highest Temperature 538 | 6 538 12 . Average Temperature 139 | 6 145 7 . Received Heat Transfer 45 | . 45 . . Effects 4 | . 4 . . Shutdowns 1 | . 1 . . Energy Bleed 1 | . 1 . . Short Circuit 2 | . 2 . . Siege Activations . | . . . . Robots Corrupted . | . . . . Combat Hostiles . | . . . . Parts Fried . | . . . . Impact Corruptions . | . . . . Robots Melted 1 | . 1 . . Combat Hostiles . | . . . . Parts Melted . | . . . . Heat Transferred 1369 | . 1221 148 . Parts Sabotaged . | . . . . Parts Stolen . | . . . . Parts Stripped . | . . . . Power Chain Reactions . | . . . . Missiles Intercepted . | . . . . Alert | -11 -10 -10 -9 ------- Run | Scr Mat Min Mat Peak Influence 353 | 70 353 186 . Average Influence 128 | 32 177 139 . Maximum Alert Level 1 | . 1 . . Low Security (%) 80 | 100 61 100 . Level 1 19 | . 38 . . Level 2 . | . . . . Level 3 . | . . . . Level 4 . | . . . . Level 5 . | . . . . High Security . | . . . . Max Security . | . . . . Squads Dispatched 1 | . 1 . . Investigation . | . . . . Extermination . | . . . . Reinforcement 1 | . 1 . . Assault . | . . . . Garrison . | . . . . Intercept . | . . . . Construction Impeded . | . . . . Haulers Reinforced . | . . . . Stealth | -11 -10 -10 -9 --------- Run | Scr Mat Min Mat Distress Signals . | . . . . Communications Jammed . | . . . . Distress Signals . | . . . . Times Spotted 38 | . 21 17 . Peak Tracking Total 10 | . 5 10 . Tactical Retreats 4 | . 2 2 . Traps | -11 -10 -10 -9 ------- Run | Scr Mat Min Mat Traps Triggered 1 | . 1 . . Indirectly . | . . . . Trap Hack Attempts . | . . . . Triggered . | . . . . Disarmed . | . . . . Reprogrammed . | . . . . Reused . | . . . . Traps Extracted . | . . . . Installed . | . . . . Triggered . | . . . . Machines | -11 -10 -10 -9 ---------- Run | Scr Mat Min Mat Machines Disabled 1 | . 1 . . Max in Single Turn 1 | . 1 . . Machines Sabotaged . | . . . . Garrisons Compromised . | . . . . Overloaded Fab Kills . | . . . . Fab Network Shutdowns . | . . . . Hacking | -11 -10 -10 -9 --------- Run | Scr Mat Min Mat Machines Accessed 7 | . 7 . . Terminals 6 | . 6 . . Fabricators . | . . . . Repair Stations . | . . . . Recycling Units 1 | . 1 . . Scanalyzers . | . . . . Garrison Access . | . . . . Total Hacks 20 | . 20 . . Successful 11 | . 11 . . Failed 9 | . 9 . . Catastrophic . | . . . . Database Lockouts . | . . . . Manual 10 | . 10 . . Terminals 18 | . 18 . . Fabricators . | . . . . Repair Stations . | . . . . Recycling Units 2 | . 2 . . Scanalyzers . | . . . . Garrison Access . | . . . . Terminal Hacks 3 | . 3 . . Alert Level 2 | . 2 . . Registered Prototypes 1 | . 1 . . Fabricator Hacks . | . . . . Repair Station Hacks . | . . . . Recycling Unit Hacks 1 | . 1 . . Retrieve Components 1 | . 1 . . Scanalyzer . | . . . . Garrison Access Hacks . | . . . . Unauthorized Hacks 16 | . 16 . . Terminals 7 | . 7 . . Assimilate 1 | . 1 . . Botnet 6 | . 6 . . Fabricators . | . . . . Repair Stations . | . . . . Recycling Units . | . . . . Scanalyzers . | . . . . Garrison Access . | . . . . Data Cores Recovered . | . . . . Used . | . . . . Hacking Detections 7 | . 7 . . Full Trace Events 2 | . 2 . . Feedback Events . | . . . . Feedback Blocked . | . . . . Robot Schematics Acquired . | . . . . Robots Built . | . . . . Matter . | . . . . Time . | . . . . Total Robot Build Rating . | . . . . Part Schematics Acquired . | . . . . Parts Built . | . . . . Matter . | . . . . Time . | . . . . Total Part Build Rating . | . . . . Parts Repaired . | . . . . Time . | . . . . Parts Recycled . | . . . . Recycled Matter . | . . . . Retrieved Matter . | . . . . Retrieved Components 10 | . 10 . . Parts Scanalyzed . | . . . . Part Schematics Acquired . | . . . . Parts Damaged . | . . . . Bothacking | -11 -10 -10 -9 ------------ Run | Scr Mat Min Mat Used RIF Installer . | . . . . Robots Hacked . | . . . . Non-combat . | . . . . Combat . | . . . . Robot Hacks Applied . | . . . . Relay Couplers Released . | . . . . Robots Rewired . | . . . . Allies Hacked . | . . . . Hacks Repelled . | . . . . Allies | -11 -10 -10 -9 -------- Run | Scr Mat Min Mat Total Allies 1 | . 1 . . Largest Group 1 | . 1 . . Highest-Rated Group 10 | . 10 . . Highest-Rated Ally 10 | . 10 . . Total Orders 2 | . 2 . . GOTO 1 | . 1 . . FOLLOW 1 | . 1 . . Ally Attacks . | . . . . Total Damage . | . . . . Kills . | . . . . Allies Corrupted . | . . . . Allies Melted . | . . . . Intel | -11 -10 -10 -9 ------- Run | Scr Mat Min Mat Robot Analysis Total . | . . . . Derelict Logs Recovered . | . . . . Drone Launches . | . . . . Drone Recoveries . | . . . . Exploration | -11 -10 -10 -9 ------------- Run | Scr Mat Min Mat Turns Passed 1151 | 332 586 233 . Spaces Moved 895 | 201 536 158 . Core 62 | 1 . 61 . Treads . | . . . . Legs . | . . . . Wheels 833 | 200 536 97 . Hover . | . . . . Flight . | . . . . Fastest Speed 50 | 50 80 50 . Average Speed 85 | 79 83 97 . Slowest Speed 600 | 80 100 600 . Overloaded Moves . | . . . . Propulsion Burnouts . | . . . . Robots Hopped . | . . . . Cave-ins Triggered . | . . . . Exploration Rate (%) 26 | 7 74 23 1 Regions Visited 3 Branch Regions 1 Pre-discovered Areas 1 | . . 1 . Known Exits Taken . | . . . . Unknown Exits Taken 3 | 1 1 1 . Scrap Searched . | . . . . Spaces Dug 1 | . 1 . . Terrain Destroyed 30 | . 1 29 . Melee . | . . . . Projectile 1 | . 1 . . AOE 29 | . . 29 . Actions | -11 -10 -10 -9 --------- Run | Scr Mat Min Mat Total 1095 | 270 615 210 . Wait 38 | . 19 19 . Move 892 | 200 535 157 . Hop . | . . . . Pick Up 21 | 9 11 1 . Fast Attach 12 | 7 2 3 . Attach 2 | . 1 1 . Detach 1 | . . 1 . Swap 6 | . 6 . . Drop 17 | 4 10 3 . Fire 106 | 50 31 25 . Melee . | . . . . Ram . | . . . . Kick . | . . . . Crush . | . . . . Escape Stasis . | . . . . Rewire . | . . . . Trap . | . . . . Miscellaneous . | . . . . Route ------- -11/Scrapyard -10/Materials (discovered 2 exits: [*Mat] / [*Min]) -10/Mines -9/Materials History --------- Turn | Location | Event 16 | -11/Scrapyard | Discovered new exit (range 16) 333 | -11/Scrapyard | Entered Materials 334 | -10/Materials | Build established: Mutant 490 | -10/Materials | Discovered new exit (range 15) 914 | -10/Materials | Discovered new exit (range 6) 919 | -10/Materials | Entered Mines 920 | -10/Mines | Learned location of Storage (-8) 982 | -10/Mines | Discovered new exit (range 7) 1033 | -10/Mines | Assembled infested the area 1073 | -10/Mines | Lost 4 parts (1p2n1w) 1079 | -10/Mines | System corruption reached 10% 1128 | -10/Mines | Core integrity fell below 50% 1140 | -10/Mines | Core integrity fell below 20% 1152 | -10/Mines | Entered Materials 1152 | -9/Materials | Evolved 2 slots: Utility x2 1152 | -9/Materials | Self-destructed Last Messages --------------- 01125_ U-05 Engineer builds a Wall. 01128_ The unstable cave ceiling collapses. 01129_ U-05 Engineer lays Concrete. 01129_ Grenade Launcher destroyed. 01130_ U-05 Engineer lays Concrete. 01134_ U-05 Engineer builds a Wall. 01137_ The unstable cave ceiling collapses. 01138_ K-01 Serf collects debris. 01138_ U-05 Engineer builds a Wall. 01142_ U-05 Engineer lays Concrete. 01142_ K-01 Serf collects debris. 01143_ U-05 Engineer lays Concrete. 01144_ Dropped Lrg. Storage Unit. 01144_ U-05 Engineer builds a Wall. 01146_ Acquired 69 matter. 01148_ U-05 Engineer builds a Wall. 01149_ System corrupted: Matter fused (-10). PARAMETERS=UTILITY_2 LOCATION=UNKNOWN GOAL=ESCAPE Map ----- +----------------------------------------------------+ | | | | | | | | | | | | | | | | | | | | | | | ?????????????????????????????????????? | | ?????????????????????????????????????? | | ?????????????????????????????????????? | | ?????????????????????????????????????? | | ?????????????????????????????????????? | | ?????????????????????????????????????? | | ?????????????????????????????????????? | | ?????????????????????????????????????? | | ?????????????????????????????????????? | | ?????????????????????????????????????? | | ?????????????????????????????????????? | | ?????????????????????????????????????? | | ???????????######+########???????????? | | ???????????# ????????? | | ???????????# @ ????????? | | ???????????# ????????? | | ???????????###############???????????? | | ?????????????????????????????????????? | | ?????????????????????????????????????? | | ?????????????????????????????????????? | | ?????????????????????????????????????? | | ?????????????????????????????????????? | | ?????????????????????????????????????? | | ?????????????????????????????????????? | | ?????????????????????????????????????? | | ?????????????????????????????????????? | | ?????????????????????????????????????? | | ?????????????????????????????????????? | | ?????????????????????????????????????? | | ?????????????????????????????????????? | | ?????????????????????????????????????? | | ?????????????????????????????????????? | | ?????????????????????????????????????? | | ?????????????????????????????????????? | | ?????????????????????????????????????? | | ?????????????????????????????????????? | | ?????????????????????????????????????? | | ?????????????????????????????????????? | | ?????????????????????????????????????? | +----------------------------------------------------+ Best States ------------- Heat Dissipation 35 Energy Generation 10 Energy Capacity 250 Matter Stores 300 Matter Capacity 300 Sight Range 16 Terrain Scan Range 16 Terrain Scan Density 10 Evasion (%) 50 Item Schematics ----------------- None Robot Schematics ------------------ None Fabricated ------------ Nothing Alien Tech Used ----------------- None Achievements -------------- None Challenges ------------ None Game ------ Seed HardcellShadingReconstructor Manual? 0 Play Time 00:17:39 Cumulative 164.3 hours Start 2020.04.06 @ 06:48:15 End 2020.04.06 @ 15:36:37 Sessions 3 Manual Loads 0 Difficulty Rogue Special Mode None Game No. 224 Rogue 213 Adventurer 11 Explorer 0 Win Type - Total 0 Types 0/0/0/0/0/0/0 Lore% 48 Gallery% 60 Achievement% 43 Wizard Run 0 Options --------- ASCII 0 Keyboard 1 Movement Numpad Keybinds 0 Fullscreen 1 Font 12/Terminus Map View 83x54 Tactical HUD 1 Map Filters NONE Filters NONE Steam 1 RUN: 8f5e8e67-5154-4e09-8161-fa5928e67bac